[Event "EYCC Open-U16 2019"]
[Site "Bratislava"]
[Date "2019.08.06"]
[Round "5.32"]
[White "Zetocha, Adrian"]
[Black "Sismeiro, Miguel"]
[Result "0-1"]
[ECO "D86"]
[WhiteElo "2193"]
[BlackElo "2103"]
[Annotator "NA"]
[PlyCount "81"]
[EventDate "2019.08.02"]
[EventType "swiss"]
[EventCountry "SVK"]
[SourceTitle "playchess.com"]
[Source "ChessBase"]
[SourceQuality "1"]
[TimeControl "40/5400+30:1800+30"]

1. d4 {[%emt 0:00:00]} Nf6 {[%emt 0:00:00]} 2. c4 {[%emt 0:00:00]} g6 {[%emt 0:00:00]} 3. Nc3 {[%emt 0:00:10]} d5 {[%emt 0:00:00]} 4. cxd5 {[%emt 0:00:56]} Nxd5 {[%emt 0:00:03]} 5. e4 {[%emt 0:00:19]} Nxc3 {[%emt 0:00:04]} 6. bxc3 {[%emt 0:00:09]} Bg7 {[%emt 0:00:04]} 7. Bc4 {[%emt 0:01:01]} O-O {[%emt 0:00:29]} 8. Ne2 {[%emt 0:00:30]} Nc6 {[%emt 0:01:16]} 9. O-O {[%emt 0:01:04]} b6 {[%emt 0:00:59]} 10. Be3 {[%emt 0:11:43]} Bb7 {[%emt 0:04:32]} 11. Rb1 {[%emt 0:11:17]} e5 {[%emt 0:12:56]} 12. Bd5 {[%emt 0:05:17]} Na5 {[%emt 0:06:59]} 13. Bxb7 {[%emt 0:01:55]} Nxb7 {[%emt 0:00:06]} 14. f3 {[%emt 0:08:36]} Qe7 {[%emt 0:09:15]} 15. Re1 {[%emt 0:16:47]} c5 {[%emt 0:08:21]} 16. dxe5 {[%emt 0:13:06]} Qxe5 {[%emt 0:09:40]} 17. c4 {[%emt 0:03:10]} Na5 {[%emt 0:05:25]} 18. Rc1 {[%emt 0:02:20]} Rfd8 {[%emt 0:03:54]} 19. Qc2 {[%emt 0:02:27]} Nc6 {[%emt 0:10:29]} 20. Nf4 {[%emt 0:00:17]} Nb4 {[%emt 0:02:03]} 21. Qe2 {[%emt 0:01:10]} Qb2 {[%emt 0:02:24]} 22. Qxb2 {[%emt 0:02:55]} Bxb2 {[%emt 0:00:16]} 23. Rb1 {[%emt 0:08:02]} Be5 {[%emt 0:04:07]} 24. Nd5 {[%emt 0:01:51]} Nc2 {[%emt 0:08:10]} 25. Bg5 {[%emt 0:01:09]} Nxe1 {[%emt 0:00:05]} 26. Bxd8 {[%emt 0:01:11]} Nxf3+ {[%emt 0:00:05]} 27. gxf3 {[%emt 0:00:08]} Rxd8 {[%emt 0:00:02]} 28. Ne7+ {[%emt 0:00:30]} Kg7 {[%emt 0:01:08]} 29. Nc6 {[%emt 0:00:11]} Bd4+ {[%emt 0:00:30]} 30. Kf1 {[%emt 0:02:22]} Rd7 {[%emt 0:00:44]} 31. Rd1 {[%emt 0:00:35]} Kf6 {[%emt 0:01:00]} 32. f4 {[%emt 0:00:56]} g5 {[%emt 0:04:32]} 33. fxg5+ {[%emt 0:00:50]} Kxg5 {[%emt 0:00:17]} 34. Ne5 {[%emt 0:02:19]} Rc7 {[%emt 0:03:47]} 35. Nd3 {[%emt 0:01:45]} Re7 {[%emt 0:00:58]} 36. Re1 {[%emt 0:00:12]} f5 {[%emt 0:01:32]} 37. exf5 {[%emt 0:00:21]} Rxe1+ {[%emt 0:01:02]} 38. Nxe1 {[%emt 0:00:50]} Kxf5 {[%emt 0:00:06]} 39. a4 {[%emt 0:00:37]} Ke4 {[%emt 0:00:17]} 40. Ke2 {[%emt 0:00:00]} h5 {[%emt 0:00:00]} 41. Nf3 {[%emt 0:05:12]} 0-1

[Event "EYCC Open-U16 2019"]
[Site "Bratislava"]
[Date "2019.08.06"]
[Round "5.33"]
[White "Palczert, Botond"]
[Black "Melaa, Sondre"]
[Result "0-1"]
[ECO "D35"]
[WhiteElo "2022"]
[BlackElo "2118"]
[Annotator "NA"]
[PlyCount "80"]
[EventDate "2019.08.02"]
[EventType "swiss"]
[EventCountry "SVK"]
[SourceTitle "playchess.com"]
[Source "ChessBase"]
[SourceQuality "1"]
[TimeControl "40/5400+30:1800+30"]

1. d4 {[%emt 0:00:00]} d5 {[%emt 0:00:00]} 2. c4 {[%emt 0:00:00]} e6 {[%emt 0:00:00]} 3. Nc3 {[%emt 0:00:15]} Nf6 {[%emt 0:00:05]} 4. cxd5 {[%emt 0:00:22]} exd5 {[%emt 0:00:09]} 5. Bg5 {[%emt 0:00:10]} c6 {[%emt 0:00:10]} 6. e3 {[%emt 0:00:17]} Nbd7 {[%emt 0:00:20]} 7. Bd3 {[%emt 0:01:42]} Be7 {[%emt 0:00:15]} 8. h3 {[%emt 0:01:05]} h6 {[%emt 0:07:08]} 9. Bf4 {[%emt 0:00:55]} Nb6 {[%emt 0:01:30]} 10. Nf3 {[%emt 0:01:03]} Bd6 {[%emt 0:14:43]} 11. Ne5 {[%emt 0:03:32]} Qe7 {[%emt 0:03:03]} 12. O-O {[%emt 0:04:44]} Nbd7 {[%emt 0:03:29]} 13. Nxd7 {[%emt 0:02:21]} Bxd7 {[%emt 0:00:59]} 14. Bxd6 {[%emt 0:00:33]} Qxd6 {[%emt 0:00:12]} 15. Qc2 {[%emt 0:00:10]} O-O {[%emt 0:20:59]} 16. b4 {[%emt 0:09:12]} Rac8 {[%emt 0:08:07]} 17. Rfc1 {[%emt 0:08:38]} Ne8 {[%emt 0:06:56]} 18. Qa4 {[%emt 0:01:52]} a6 {[%emt 0:02:28]} 19. Qc2 {[%emt 0:07:02]} f5 {[%emt 0:05:06]} 20. f4 {[%emt 0:05:32]} Qxb4 {[%emt 0:03:18]} 21. Rab1 {[%emt 0:07:56]} Qe7 {[%emt 0:00:33]} 22. Rxb7 {[%emt 0:00:33]} Qxe3+ {[%emt 0:00:20]} 23. Kh1 {[%emt 0:00:29]} Rc7 {[%emt 0:03:34]} 24. Bxa6 {[%emt 0:07:10]} Rxb7 {[%emt 0:02:56]} 25. Bxb7 {[%emt 0:00:11]} Nd6 {[%emt 0:00:25]} 26. Rb1 {[%emt 0:09:26]} Qxf4 {[%emt 0:10:31]} 27. a4 {[%emt 0:06:31]} Qxd4 {[%emt 0:04:32]} 28. a5 {[%emt 0:01:22]} Nc4 {[%emt 0:00:18]} 29. a6 {[%emt 0:00:02]} Na3 {[%emt 0:01:33]} 30. Qd1 {[%emt 0:04:26]} Qxc3 {[%emt 0:00:29]} 31. Rb3 {[%emt 0:02:15]} Qc5 {[%emt 0:00:25]} 32. Qa1 {[%emt 0:01:00]} Nb5 {[%emt 0:00:15]} 33. Qa5 {[%emt 0:01:39]} f4 {[%emt 0:01:01]} 34. Rf3 {[%emt 0:00:48]} d4 {[%emt 0:00:27]} 35. Qd2 {[%emt 0:00:20]} g5 {[%emt 0:00:25]} 36. h4 {[%emt 0:00:31]} Bg4 {[%emt 0:00:27]} 37. Rf1 {[%emt 0:00:02]} f3 {[%emt 0:00:41]} 38. g3 {[%emt 0:00:25]} Bh3 {[%emt 0:00:30]} 39. Qd3 {[%emt 0:01:33]} Qf5 {[%emt 0:00:25]} 40. Rxf3 {[%emt 0:00:00]} Qxf3+ {[%emt 0:00:00]} 0-1

[Event "EYCC Open-U16 2019"]
[Site "Bratislava"]
[Date "2019.08.06"]
[Round "5.34"]
[White "Gomez Carreno, Martin"]
[Black "Bukatin, Arseny"]
[Result "0-1"]
[ECO "C91"]
[WhiteElo "2078"]
[BlackElo "2016"]
[Annotator "NA"]
[PlyCount "56"]
[EventDate "2019.08.02"]
[EventType "swiss"]
[EventCountry "SVK"]
[SourceTitle "playchess.com"]
[Source "ChessBase"]
[SourceQuality "1"]
[TimeControl "40/5400+30:1800+30"]

1. e4 {[%emt 0:00:00]} e5 {[%emt 0:00:00]} 2. Nf3 {[%emt 0:00:00]} Nc6 {[%emt 0:00:00]} 3. Bb5 {[%emt 0:00:00]} a6 {[%emt 0:00:00]} 4. Ba4 {[%emt 0:00:00]} Nf6 {[%emt 0:00:00]} 5. O-O {[%emt 0:00:00]} Be7 {[%emt 0:00:00]} 6. Re1 {[%emt 0:00:05]} b5 {[%emt 0:00:00]} 7. Bb3 {[%emt 0:00:06]} d6 {[%emt 0:00:00]} 8. c3 {[%emt 0:00:07]} O-O {[%emt 0:00:04]} 9. d4 {[%emt 0:00:06]} Bg4 {[%emt 0:00:44]} 10. Be3 {[%emt 0:00:07]} Bh5 {[%emt 0:00:24]} 11. h3 {[%emt 0:02:40]} exd4 {[%emt 0:07:20]} 12. cxd4 {[%emt 0:01:06]} Na5 {[%emt 0:06:55]} 13. Bc2 {[%emt 0:00:35]} Nc4 {[%emt 0:02:23]} 14. Bc1 {[%emt 0:00:07]} d5 {[%emt 0:03:13]} 15. e5 {[%emt 0:11:02]} Ne4 {[%emt 0:00:05]} 16. b3 {[%emt 0:03:42]} Nb6 {[%emt 0:02:07]} 17. Bxe4 {[%emt 0:05:27]} dxe4 {[%emt 0:00:06]} 18. Rxe4 {[%emt 0:00:06]} f6 {[%emt 0:18:53]} 19. Nbd2 {[%emt 0:21:32]} Nd5 {[%emt 0:08:16]} 20. Bb2 {[%emt 0:06:20]} fxe5 {[%emt 0:01:16]} 21. dxe5 {[%emt 0:22:50]} Nf4 {[%emt 0:00:23]} 22. Kh2 {[%emt 0:03:41]} Bc5 {[%emt 0:07:10]} 23. Qf1 {[%emt 0:10:28]} Qd5 {[%emt 0:03:23]} 24. Bc3 {[%emt 0:05:19]} Nxg2 {[%emt 0:13:22]} 25. Nd4 {[%emt 0:03:37]} Nf4 {[%emt 0:00:59]} 26. Rae1 {[%emt 0:02:46]} Bg6 {[%emt 0:05:56]} 27. Qh1 {[%emt 0:00:50]} b4 {[%emt 0:03:55]} 28. Ba1 {[%emt 0:00:36]} Ne6 {[%emt 0:00:59]} 0-1

[Event "EYCC Open-U16 2019"]
[Site "Bratislava"]
[Date "2019.08.06"]
[Round "5.35"]
[White "Stankovic, Milos M"]
[Black "Ghachava, Akaki"]
[Result "1/2-1/2"]
[ECO "A35"]
[WhiteElo "2270"]
[BlackElo "1777"]
[Annotator "NA"]
[PlyCount "57"]
[EventDate "2019.08.02"]
[EventType "swiss"]
[EventCountry "SVK"]
[SourceTitle "playchess.com"]
[Source "ChessBase"]
[SourceQuality "1"]
[TimeControl "40/5400+30:1800+30"]

1. c4 {[%emt 0:00:00]} c5 {[%emt 0:00:00]} 2. Nc3 {[%emt 0:00:24]} Nc6 {[%emt 0:00:00]} 3. Nf3 {[%emt 0:01:58]} g6 {[%emt 0:00:24]} 4. d4 {[%emt 0:01:37]} cxd4 {[%emt 0:00:06]} 5. Nxd4 {[%emt 0:00:07]} Bg7 {[%emt 0:00:02]} 6. Nxc6 {[%emt 0:13:02]} bxc6 {[%emt 0:02:32]} 7. e4 {[%emt 0:02:44]} Rb8 {[%emt 0:11:28]} 8. Qc2 {[%emt 0:04:47]} Nf6 {[%emt 0:04:31]} 9. Be2 {[%emt 0:13:55]} O-O {[%emt 0:06:20]} 10. O-O {[%emt 0:00:32]} d6 {[%emt 0:04:33]} 11. Be3 {[%emt 0:07:55]} Qa5 {[%emt 0:01:55]} 12. Rac1 {[%emt 0:01:53]} Be6 {[%emt 0:09:04]} 13. b3 {[%emt 0:09:13]} Rfc8 {[%emt 0:02:06]} 14. Qd2 {[%emt 0:06:33]} Rd8 {[%emt 0:05:48]} 15. Rfd1 {[%emt 0:01:53]} Rd7 {[%emt 0:06:55]} 16. h3 {[%emt 0:08:00]} Rbd8 {[%emt 0:03:18]} 17. Bf3 {[%emt 0:00:30]} Qa6 {[%emt 0:00:07]} 18. Qc2 {[%emt 0:01:45]} h6 {[%emt 0:02:07]} 19. Rd2 {[%emt 0:01:49]} Kh7 {[%emt 0:05:58]} 20. Rcd1 {[%emt 0:01:30]} Qa5 {[%emt 0:02:47]} 21. Na4 {[%emt 0:06:24]} Rc7 {[%emt 0:06:03]} 22. Nc5 {[%emt 0:05:00]} Nd7 {[%emt 0:04:07]} 23. Nxd7 {[%emt 0:06:00]} Rcxd7 {[%emt 0:01:46]} 24. Bd4 {[%emt 0:03:09]} Bxd4 {[%emt 0:02:19]} 25. Rxd4 {[%emt 0:00:03]} Qc5 {[%emt 0:00:33]} 26. Qd2 {[%emt 0:00:50]} a5 {[%emt 0:01:49]} 27. Be2 {[%emt 0:01:08]} Rb8 {[%emt 0:01:04]} 28. Rb1 {[%emt 0:00:40]} Rdb7 {[%emt 0:00:38]} 29. Bg4 {[%emt 0:00:35]} 1/2-1/2

[Event "EYCC Open-U16 2019"]
[Site "Bratislava"]
[Date "2019.08.06"]
[Round "5.36"]
[White "Fernandez Garcia, Gumersindo"]
[Black "Gavrilin, Roman"]
[Result "1/2-1/2"]
[ECO "E09"]
[WhiteElo "2011"]
[BlackElo "2131"]
[Annotator "NA"]
[PlyCount "50"]
[EventDate "2019.08.02"]
[EventType "swiss"]
[EventCountry "SVK"]
[SourceTitle "playchess.com"]
[Source "ChessBase"]
[SourceQuality "1"]
[TimeControl "40/5400+30:1800+30"]

1. d4 {[%emt 0:00:00]} Nf6 {[%emt 0:00:00]} 2. c4 {[%emt 0:00:00]} e6 {[%emt 0:00:00]} 3. g3 {[%emt 0:00:24]} d5 {[%emt 0:00:04]} 4. Nf3 {[%emt 0:00:13]} Be7 {[%emt 0:00:06]} 5. Bg2 {[%emt 0:00:22]} O-O {[%emt 0:00:10]} 6. Qc2 {[%emt 0:00:42]} Nbd7 {[%emt 0:00:10]} 7. O-O {[%emt 0:00:33]} c6 {[%emt 0:00:05]} 8. Nbd2 {[%emt 0:00:19]} b6 {[%emt 0:00:07]} 9. e4 {[%emt 0:00:13]} dxc4 {[%emt 0:00:05]} 10. Nxc4 {[%emt 0:08:07]} Bb7 {[%emt 0:00:07]} 11. Nfe5 {[%emt 0:04:59]} Rc8 {[%emt 0:10:47]} 12. Rd1 {[%emt 0:03:35]} b5 {[%emt 0:05:40]} 13. Nxd7 {[%emt 0:07:25]} Nxd7 {[%emt 0:00:26]} 14. Ne3 {[%emt 0:00:56]} Qb6 {[%emt 0:05:48]} 15. Qe2 {[%emt 0:09:43]} Rfd8 {[%emt 0:05:35]} 16. a4 {[%emt 0:05:53]} a5 {[%emt 0:29:33]} 17. Bd2 {[%emt 0:21:18]} b4 {[%emt 0:03:18]} 18. Nc4 {[%emt 0:02:33]} Qa6 {[%emt 0:01:50]} 19. Bf4 {[%emt 0:06:13]} Nb6 {[%emt 0:05:28]} 20. Bf1 {[%emt 0:04:37]} Nxc4 {[%emt 0:08:26]} 21. Qxc4 {[%emt 0:00:01]} Qxc4 {[%emt 0:00:20]} 22. Bxc4 {[%emt 0:00:02]} c5 {[%emt 0:02:25]} 23. d5 {[%emt 0:00:48]} exd5 {[%emt 0:00:11]} 24. exd5 {[%emt 0:00:32]} Bf6 {[%emt 0:09:56]} 25. d6 {[%emt 0:13:59]} Bc6 {[%emt 0:02:20]} 1/2-1/2

[Event "EYCC Open-U16 2019"]
[Site "Bratislava"]
[Date "2019.08.06"]
[Round "5.37"]
[White "Keprt, Tomas"]
[Black "Silich, Yahor"]
[Result "0-1"]
[ECO "B22"]
[WhiteElo "1438"]
[BlackElo "2100"]
[Annotator "NA"]
[PlyCount "92"]
[EventDate "2019.08.02"]
[EventType "swiss"]
[EventCountry "SVK"]
[SourceTitle "playchess.com"]
[Source "ChessBase"]
[SourceQuality "1"]
[TimeControl "40/5400+30:1800+30"]

1. e4 {[%emt 0:00:00]} c5 {[%emt 0:00:00]} 2. c3 {[%emt 0:00:00]} d5 {[%emt 0:00:18]} 3. exd5 {[%emt 0:00:00]} Qxd5 {[%emt 0:00:07]} 4. d4 {[%emt 0:00:45]} Nf6 {[%emt 0:01:31]} 5. Nf3 {[%emt 0:00:19]} e6 {[%emt 0:00:54]} 6. Be3 {[%emt 0:02:34]} Nc6 {[%emt 0:01:14]} 7. dxc5 {[%emt 0:02:57]} Qxd1+ {[%emt 0:00:42]} 8. Kxd1 {[%emt 0:00:10]} Ng4 {[%emt 0:00:43]} 9. b4 {[%emt 0:12:57]} Nxe3+ {[%emt 0:14:53]} 10. fxe3 {[%emt 0:00:16]} Bd7 {[%emt 0:03:40]} 11. Bb5 {[%emt 0:11:36]} a5 {[%emt 0:14:07]} 12. Bxc6 {[%emt 0:07:10]} Bxc6 {[%emt 0:04:33]} 13. Nbd2 {[%emt 0:01:32]} g6 {[%emt 0:04:38]} 14. Rg1 {[%emt 0:13:32]} axb4 {[%emt 0:04:02]} 15. cxb4 {[%emt 0:00:23]} Ra4 {[%emt 0:02:06]} 16. a3 {[%emt 0:01:38]} Bg7 {[%emt 0:01:29]} 17. Nd4 {[%emt 0:01:16]} Bd5 {[%emt 0:00:13]} 18. Kc2 {[%emt 0:01:33]} Ke7 {[%emt 0:02:11]} 19. g3 {[%emt 0:04:54]} h5 {[%emt 0:04:39]} 20. Nb1 {[%emt 0:02:50]} Raa8 {[%emt 0:13:09]} 21. Nc3 {[%emt 0:02:23]} Bc4 {[%emt 0:00:23]} 22. Rgd1 {[%emt 0:01:40]} h4 {[%emt 0:03:55]} 23. g4 {[%emt 0:02:41]} f5 {[%emt 0:01:19]} 24. gxf5 {[%emt 0:04:49]} gxf5 {[%emt 0:00:34]} 25. c6 {[%emt 0:01:38]} bxc6 {[%emt 0:09:20]} 26. Nxc6+ {[%emt 0:00:13]} Kf6 {[%emt 0:00:12]} 27. b5 {[%emt 0:02:50]} Rhc8 {[%emt 0:00:58]} 28. a4 {[%emt 0:01:04]} Bh6 {[%emt 0:00:31]} 29. Kd2 {[%emt 0:05:54]} e5 {[%emt 0:01:21]} 30. Ke1 {[%emt 0:04:36]} Ke6 {[%emt 0:03:15]} 31. Kf2 {[%emt 0:01:06]} f4 {[%emt 0:01:13]} 32. exf4 {[%emt 0:01:50]} Bxf4 {[%emt 0:00:11]} 33. h3 {[%emt 0:00:32]} Rf8 {[%emt 0:02:08]} 34. Ne4 {[%emt 0:06:00]} Bh6+ {[%emt 0:00:52]} 35. Kg2 {[%emt 0:01:40]} Bd5 {[%emt 0:00:46]} 36. Rxd5 {[%emt 0:01:51]} Kxd5 {[%emt 0:00:02]} 37. Nc3+ {[%emt 0:00:22]} Kc4 {[%emt 0:00:29]} 38. Ne4 {[%emt 0:00:21]} Rg8+ {[%emt 0:01:41]} 39. Kh1 {[%emt 0:00:58]} Raf8 {[%emt 0:00:19]} 40. Rg1 {[%emt 0:00:00]} Rxg1+ {[%emt 0:00:00]} 41. Kxg1 {[%emt 0:00:45]} Be3+ {[%emt 0:00:42]} 42. Kg2 {[%emt 0:02:27]} Kd3 {[%emt 0:01:05]} 43. Nd6 {[%emt 0:01:13]} Rg8+ {[%emt 0:03:45]} 44. Kh1 {[%emt 0:00:19]} Ke2 {[%emt 0:04:08]} 45. Nxe5 {[%emt 0:02:03]} Bf4 {[%emt 0:01:04]} 46. Ndc4 {[%emt 0:00:45]} Rg3 {[%emt 0:01:24]} 0-1

[Event "EYCC Open-U16 2019"]
[Site "Bratislava"]
[Date "2019.08.06"]
[Round "5.38"]
[White "Grutter, Tim"]
[Black "Sadovnikov, Konstantin"]
[Result "1-0"]
[ECO "B33"]
[WhiteElo "2091"]
[BlackElo "1798"]
[Annotator "NA"]
[PlyCount "59"]
[EventDate "2019.08.02"]
[EventType "swiss"]
[EventCountry "SVK"]
[SourceTitle "playchess.com"]
[Source "ChessBase"]
[SourceQuality "1"]
[TimeControl "40/5400+30:1800+30"]

1. e4 {[%emt 0:00:00]} c5 {[%emt 0:00:00]} 2. Nf3 {[%emt 0:00:00]} Nc6 {[%emt 0:00:00]} 3. d4 {[%emt 0:00:00]} cxd4 {[%emt 0:00:00]} 4. Nxd4 {[%emt 0:00:00]} Nf6 {[%emt 0:00:00]} 5. Nc3 {[%emt 0:00:00]} e5 {[%emt 0:00:00]} 6. Ndb5 {[%emt 0:00:00]} d6 {[%emt 0:00:01]} 7. Bg5 {[%emt 0:00:04]} a6 {[%emt 0:00:04]} 8. Na3 {[%emt 0:00:03]} b5 {[%emt 0:00:05]} 9. Nd5 {[%emt 0:00:04]} Be7 {[%emt 0:00:04]} 10. Bxf6 {[%emt 0:00:04]} Bxf6 {[%emt 0:00:04]} 11. c3 {[%emt 0:00:04]} Rb8 {[%emt 0:00:12]} 12. Nc2 {[%emt 0:00:11]} Bg5 {[%emt 0:00:05]} 13. a4 {[%emt 0:00:23]} bxa4 {[%emt 0:00:06]} 14. Ncb4 {[%emt 0:00:06]} Nxb4 {[%emt 0:00:16]} 15. cxb4 {[%emt 0:00:05]} O-O {[%emt 0:07:02]} 16. h4 {[%emt 0:04:19]} Be7 {[%emt 0:05:09]} 17. Rxa4 {[%emt 0:06:57]} Be6 {[%emt 0:09:29]} 18. Bxa6 {[%emt 0:06:47]} Bxd5 {[%emt 0:01:15]} 19. Qxd5 {[%emt 0:01:50]} Qd7 {[%emt 0:09:58]} 20. b5 {[%emt 0:04:14]} Kh8 {[%emt 0:00:39]} 21. Rc4 {[%emt 0:08:15]} f5 {[%emt 0:04:55]} 22. exf5 {[%emt 0:05:00]} Rxf5 {[%emt 0:11:27]} 23. b6 {[%emt 0:05:19]} Bd8 {[%emt 0:12:50]} 24. b7 {[%emt 0:02:32]} Bb6 {[%emt 0:04:32]} 25. Rc8+ {[%emt 0:04:03]} Rf8 {[%emt 0:00:12]} 26. O-O {[%emt 0:02:23]} Ba7 {[%emt 0:05:49]} 27. Qf3 {[%emt 0:10:07]} Rbxc8 {[%emt 0:03:26]} 28. bxc8=Q {[%emt 0:00:09]} Rxc8 {[%emt 0:00:10]} 29. Bxc8 {[%emt 0:00:10]} Qxc8 {[%emt 0:00:05]} 30. Ra1 {[%emt 0:00:11]} 1-0

[Event "EYCC Open-U16 2019"]
[Site "Bratislava"]
[Date "2019.08.06"]
[Round "5.39"]
[White "Carlsson, Ludvig"]
[Black "Gzib, David"]
[Result "1-0"]
[ECO "A39"]
[WhiteElo "2218"]
[BlackElo "2021"]
[Annotator "NA"]
[PlyCount "79"]
[EventDate "2019.08.02"]
[EventType "swiss"]
[EventCountry "SVK"]
[SourceTitle "playchess.com"]
[Source "ChessBase"]
[SourceQuality "1"]
[TimeControl "40/5400+30:1800+30"]

1. c4 {[%emt 0:00:00]} g6 {[%emt 0:00:00]} 2. g3 {[%emt 0:00:20]} Bg7 {[%emt 0:00:19]} 3. Bg2 {[%emt 0:00:12]} Nf6 {[%emt 0:00:22]} 4. Nc3 {[%emt 0:00:27]} c5 {[%emt 0:00:18]} 5. Nf3 {[%emt 0:00:11]} Nc6 {[%emt 0:00:34]} 6. O-O {[%emt 0:00:13]} O-O {[%emt 0:00:06]} 7. d4 {[%emt 0:04:20]} cxd4 {[%emt 0:01:32]} 8. Nxd4 {[%emt 0:02:59]} Qb6 {[%emt 0:00:37]} 9. Nc2 {[%emt 0:03:40]} d6 {[%emt 0:02:02]} 10. b3 {[%emt 0:02:55]} Qa5 {[%emt 0:03:27]} 11. Bb2 {[%emt 0:08:59]} Bd7 {[%emt 0:03:03]} 12. Qe1 {[%emt 0:05:16]} Qc7 {[%emt 0:03:47]} 13. Ne3 {[%emt 0:03:08]} Rfc8 {[%emt 0:15:35]} 14. Ncd5 {[%emt 0:07:29]} Nxd5 {[%emt 0:00:27]} 15. Nxd5 {[%emt 0:00:11]} Qd8 {[%emt 0:00:18]} 16. Bxg7 {[%emt 0:00:11]} Kxg7 {[%emt 0:00:06]} 17. Qc3+ {[%emt 0:00:15]} f6 {[%emt 0:07:40]} 18. Qe3 {[%emt 0:04:42]} e6 {[%emt 0:08:23]} 19. Nc3 {[%emt 0:01:26]} Qe7 {[%emt 0:08:39]} 20. Rfd1 {[%emt 0:01:14]} Rd8 {[%emt 0:03:12]} 21. Rd2 {[%emt 0:01:30]} Be8 {[%emt 0:05:15]} 22. Rad1 {[%emt 0:04:37]} Ne5 {[%emt 0:03:36]} 23. f4 {[%emt 0:02:08]} Nf7 {[%emt 0:03:10]} 24. Bh3 {[%emt 0:04:13]} e5 {[%emt 0:01:22]} 25. Nd5 {[%emt 0:00:16]} Qf8 {[%emt 0:00:13]} 26. Nc7 {[%emt 0:00:10]} exf4 {[%emt 0:02:05]} 27. gxf4 {[%emt 0:00:21]} Kh8 {[%emt 0:01:35]} 28. Nxa8 {[%emt 0:04:28]} Rxa8 {[%emt 0:00:14]} 29. Qe6 {[%emt 0:00:25]} Qg7 {[%emt 0:02:11]} 30. Bg2 {[%emt 0:01:00]} g5 {[%emt 0:01:46]} 31. e3 {[%emt 0:01:25]} gxf4 {[%emt 0:00:40]} 32. exf4 {[%emt 0:00:11]} Bc6 {[%emt 0:00:18]} 33. Kh1 {[%emt 0:01:36]} Rg8 {[%emt 0:00:22]} 34. Bxc6 {[%emt 0:01:27]} bxc6 {[%emt 0:00:08]} 35. Qe4 {[%emt 0:01:08]} Qg4 {[%emt 0:01:03]} 36. Re1 {[%emt 0:00:17]} f5 {[%emt 0:04:00]} 37. Qd4+ {[%emt 0:00:50]} Ne5 {[%emt 0:00:12]} 38. Rf2 {[%emt 0:00:52]} c5 {[%emt 0:04:54]} 39. Qxd6 {[%emt 0:01:19]} Nf3 {[%emt 0:07:53]} 40. Qf6+ {[%emt 0:00:00]} 1-0

[Event "EYCC Open-U16 2019"]
[Site "Bratislava"]
[Date "2019.08.06"]
[Round "5.40"]
[White "Vitenberg, Noam Aviv"]
[Black "Redzisz, Michal"]
[Result "1-0"]
[ECO "D12"]
[WhiteElo "2300"]
[BlackElo "2054"]
[Annotator "NA"]
[PlyCount "107"]
[EventDate "2019.08.02"]
[EventType "swiss"]
[EventCountry "SVK"]
[SourceTitle "playchess.com"]
[Source "ChessBase"]
[SourceQuality "1"]
[TimeControl "40/5400+30:1800+30"]

1. Nf3 {[%emt 0:00:00]} d5 {[%emt 0:00:00]} 2. d4 {[%emt 0:00:00]} Nf6 {[%emt 0:00:07]} 3. c4 {[%emt 0:00:14]} c6 {[%emt 0:01:45]} 4. e3 {[%emt 0:01:28]} Bf5 {[%emt 0:03:18]} 5. Nc3 {[%emt 0:01:31]} e6 {[%emt 0:01:32]} 6. Qb3 {[%emt 0:04:24]} Qb6 {[%emt 0:02:12]} 7. c5 {[%emt 0:04:51]} Qc7 {[%emt 0:01:00]} 8. Nh4 {[%emt 0:02:34]} Bg6 {[%emt 0:08:40]} 9. Nxg6 {[%emt 0:09:22]} hxg6 {[%emt 0:00:06]} 10. h3 {[%emt 0:02:22]} Nbd7 {[%emt 0:05:46]} 11. Bd2 {[%emt 0:02:47]} Be7 {[%emt 0:03:00]} 12. Be2 {[%emt 0:01:29]} e5 {[%emt 0:05:26]} 13. Qc2 {[%emt 0:12:24]} Nf8 {[%emt 0:17:23]} 14. Qa4 {[%emt 0:22:34]} Ne6 {[%emt 0:01:42]} 15. O-O-O {[%emt 0:03:55]} O-O {[%emt 0:16:16]} 16. Be1 {[%emt 0:17:34]} exd4 {[%emt 0:10:00]} 17. exd4 {[%emt 0:00:28]} Qf4+ {[%emt 0:04:58]} 18. Kb1 {[%emt 0:00:45]} b5 {[%emt 0:01:19]} 19. cxb6 axb6 {[%emt 0:00:11]} 20. Qxc6 {[%emt 0:06:23]} Nxd4 {[%emt 0:00:33]} 21. Qb7 {[%emt 0:00:34]} Bc5 {[%emt 0:09:12]} 22. Bd3 {[%emt 0:00:55]} Rfb8 {[%emt 0:02:54]} 23. Nxd5 {[%emt 0:01:03]} Qd6 {[%emt 0:00:32]} 24. Nxf6+ {[%emt 0:00:24]} gxf6 {[%emt 0:00:15]} 25. Qe4 {[%emt 0:01:21]} f5 {[%emt 0:00:32]} 26. Qh4 {[%emt 0:01:02]} Qd5 {[%emt 0:03:04]} 27. b3 {[%emt 0:00:22]} Nxb3 {[%emt 0:00:39]} 28. Bc2 {[%emt 0:00:52]} Nd4 {[%emt 0:00:41]} 29. Bb3 {[%emt 0:00:17]} Qe5 {[%emt 0:00:37]} 30. Bc3 {[%emt 0:00:32]} Rd8 {[%emt 0:00:43]} 31. Rhe1 {[%emt 0:01:17]} Qg7 {[%emt 0:00:19]} 32. Rd3 {[%emt 0:01:07]} g5 {[%emt 0:00:38]} 33. Qh5 {[%emt 0:00:17]} Rd7 {[%emt 0:00:31]} 34. Rg3 {[%emt 0:00:30]} g4 {[%emt 0:00:24]} 35. hxg4 {[%emt 0:01:07]} f4 {[%emt 0:00:02]} 36. Rh3 {[%emt 0:00:17]} Bb4 {[%emt 0:01:04]} 37. Reh1 {[%emt 0:00:48]} Bxc3 {[%emt 0:00:33]} 38. Qh8+ {[%emt 0:00:26]} Qxh8 {[%emt 0:00:03]} 39. Rxh8+ {[%emt 0:00:04]} Kg7 {[%emt 0:00:04]} 40. Rxa8 {[%emt 0:00:00]} Nxb3 {[%emt 0:00:00]} 41. axb3 {[%emt 0:01:23]} Re7 {[%emt 0:03:09]} 42. Rc1 {[%emt 0:13:43]} Bd4 {[%emt 0:00:30]} 43. Ra2 {[%emt 0:00:22]} Kg6 {[%emt 0:00:48]} 44. Rd1 {[%emt 0:01:28]} Bc5 {[%emt 0:00:38]} 45. Rb2 {[%emt 0:02:12]} Ba3 {[%emt 0:00:49]} 46. Rc2 {[%emt 0:01:13]} Bc5 {[%emt 0:00:08]} 47. f3 {[%emt 0:01:23]} Re3 {[%emt 0:02:35]} 48. Kb2 {[%emt 0:01:51]} Re6 {[%emt 0:01:28]} 49. Rd5 {[%emt 0:00:24]} Bg1 {[%emt 0:01:13]} 50. b4 {[%emt 0:01:38]} f6 {[%emt 0:00:32]} 51. Kb3 {[%emt 0:00:45]} Kf7 {[%emt 0:01:10]} 52. Rc7+ {[%emt 0:00:37]} Kg6 {[%emt 0:00:08]} 53. Rdd7 {[%emt 0:00:49]} Kg5 {[%emt 0:00:04]} 54. Rh7 {[%emt 0:01:16]} 1-0